Cogmind - Beta 16 @@@ ROGUE MODE // 2025.10.31 @ 21:32:39 Player: GiggleBox Result: Self-destructed Performance ------------- Evolutions (2) 1000 Regions Visited (5) 1000 Robots Destroyed (36) 180 Value Destroyed (800) 800 Prototype IDs (26) 520 Alien Tech Used (0) 0 Bonus (478) 478 TOTAL SCORE: 3978 Bonus ------- Follower Combat Kills 178 Aligned with FarCom 300 Cogmind --------- Core Integrity 484/550 Matter 300/300 Energy 160/160 System Corruption 7% Temperature Cool (99) Movement Treading (240) Ox1 Location -8/Materials Parts ------- > --- POWER (1) -------- Light Nuclear Core > --- PROPULSION (4) --- Light Treads Aluminum Leg Armored Huge Wheel > --- UTILITY (4) ------ Medium Storage Unit Trap Scanner ECM Suite > --- WEAPON (2) ------- Beam Cannon > --- INVENTORY (10) --- Light Angular Momentum Engine Armored Huge Wheel Weight Redist. System Trap Reconfigurator Small Laser Particle Gun Heavy Assault Rifle Peak State ------------ > --- POWER ------------ Light Nuclear Core > --- PROPULSION ------- Light Treads Light Treads Armored Huge Wheel > --- UTILITY ---------- Medium Storage Unit Trap Scanner Light Armor Plating Trap Reconfigurator > --- WEAPON ----------- Spread Laser Beamcaster > --- INVENTORY -------- Armored Huge Wheel Weight Redist. System Seismic Detector ECM Suite EM Pulse Gun Small Laser Particle Gun Beam Cannon [Rating: 35] Favorites ----------- Power Ion Engine Engine Ion Engine Power Core Light Nuclear Core Propulsion Light Treads Treads Light Treads Leg Titanium Leg Wheel Compact Wheel Utility Heat Sink Device Heat Sink Storage Medium Storage Unit Protection Light Armor Plating Weapon Small Laser Energy Gun Small Laser Energy Cannon Beam Cannon Ballistic Gun Heavy Assault Rifle Build | -11 -10 -10 -10 -9 -8 ------- Run | Yrd Mat Min Exi Min Mat Slots Evolved 4 | . . . . . 4 Power . | . . . . . . Propulsion 2 | . . . . . 2 Utility 2 | . . . . . 2 Weapon . | . . . . . . Parts Attached 30 | 7 8 . . . 15 Power 3 | 1 1 . . . 1 Engine 2 | 1 1 . . . . Core 1 | . . . . . 1 Reactor . | . . . . . . Propulsion 10 | 2 1 . . . 7 Treads 5 | 2 . . . . 3 Leg 2 | . . . . . 2 Wheel 3 | . 1 . . . 2 Hover . | . . . . . . Flight . | . . . . . . Utility 9 | 2 3 . . . 4 Device 6 | 1 2 . . . 3 Storage 2 | 1 1 . . . . Processor . | . . . . . . Hackware . | . . . . . . Protection 1 | . . . . . 1 Artifact . | . . . . . . Weapon 8 | 2 3 . . . 3 Energy Gun 6 | 2 2 . . . 2 Energy Cannon 1 | . 1 . . . . Ballistic Gun 1 | . . . . . 1 Ballistic Cannon . | . . . . . . Launcher . | . . . . . . Special Weapon . | . . . . . . Impact Weapon . | . . . . . . Slashing Weapon . | . . . . . . Piercing Weapon . | . . . . . . Special Melee Weapon . | . . . . . . Unidentified Prototypes . | . . . . . . Corrupted Parts 1 | . . . . . 1 System Corruption 7 | . . . . . 7 Parts Lost 7 | . 1 . . . 6 Power 1 | . . . . . 1 Propulsion 1 | . . . . . 1 Utility 2 | . . . . . 2 Weapon 3 | . 1 . . . 2 Highest Loss Streak 3 | . 1 . . . 3 To Critical Strikes . | . . . . . . Average Backups 7 | 1 5 9 10 9 8 Power . | . 1 1 1 . . Propulsion . | . . 1 1 1 . Utility 3 | . 2 5 6 6 3 Weapon 2 | . 1 2 2 2 3 Tool/Special . | . . . . . . Unused Backups 5 | . . . 1 1 3 Power 2 | . . . . 1 1 Propulsion 1 | . . . . . 1 Utility 1 | . . . 1 . . Weapon 1 | . . . . . 1 Tool/Special . | . . . . . . Average Slot Usage (%) 95 | . 99 100 100 100 80 Engine 11 | . 14 14 14 14 3 Core 1 | . . . . . 4 Treads 19 | . 25 14 14 14 17 Wheel 7 | . 1 14 14 14 8 Device 13 | . 14 14 14 14 13 Storage 12 | . 14 14 14 14 9 Protection 1 | . . . . . 5 Energy Gun 23 | . 24 28 28 28 14 Energy Cannon 1 | . 3 . . . 1 Peak Build Rating 35 | 7 8 8 8 9 35 Average Rating 11 | 4 6 8 8 8 24 On Entrance 6 | . 7 8 8 8 9 Avg Prop Armor Cover (%) 14 | . 13 14 14 14 16 Naked Turns . | . . . . . . Heaviest Build 29 | 13 18 18 18 18 29 Greatest Support 40 | 40 40 16 16 16 28 Greatest Overweight (x) 1 | . 1 1 1 1 1 Average Overweight (x) . | . . 1 1 1 . Largest Inventory Capacity 10 | 8 10 10 10 10 10 Average Capacity 9 | 6 8 10 10 10 10 Most Carried 10 | 2 9 10 10 10 10 Average Carried 7 | 1 5 9 9 9 9 Final Capacity 10 | 8 10 10 10 10 10 Final Carried 10 | 2 9 10 10 10 8 Class Distribution -------------------- 81% | Mutant 18% | Scavenger-Mutant Dominant Class ---------------- Mutant | -10/Materials Mutant | -10/Mines Mutant | -10/Exiles Mutant | -9/Mines Scavenger-Mutant | -8/Materials Resources | -11 -10 -10 -10 -9 -8 ----------- Run | Yrd Mat Min Exi Min Mat Matter Collected 657 | 270 121 . . . 266 Remotely . | . . . . . . Salvage Created 1063 | 86 591 . . 33 353 Parts 59 | 5 39 . . 3 12 Haulers Intercepted 3 | . 2 . . . 1 Recyclers Shooed 2 | . 2 . . . . Parts Field Recycled . | . . . . . . Retrieved Matter . | . . . . . . Parts Self-Destructed . | . . . . . . Prevented . | . . . . . . Parts Restored . | . . . . . . Kills | -11 -10 -10 -10 -9 -8 ------- Run | Yrd Mat Min Exi Min Mat Combat Hostiles Destroyed 26 | . 16 . . 1 9 Guns 19 | . 10 . . 1 8 Cannons 5 | . 4 . . . 1 AOE 1 | . 1 . . . . Classes Destroyed 10 | 2 5 . . . 3 Worker 2 | . 2 . . . . Builder 2 | . . . . . 2 Tunneler 1 | 1 . . . . . Hauler 3 | . 2 . . . 1 Recycler 1 | 1 . . . . . Watcher 1 | . 1 . . . . Swarmer 11 | . 8 . . . 3 Grunt 13 | . 8 . . 1 4 Sentry 1 | . . . . . 1 Hunter 1 | . . . . . 1 Best Kill Streak 4 | 2 3 . . 1 4 Combat Bots Only 4 | . 3 . . 1 4 Max Kills in Single Turn 1 | 1 1 . . 1 1 Gunslinging . | . . . . . . Exploded 1 | . 1 . . . . Melee . | . . . . . . Uniques/NPCs Destroyed . | . . . . . . Combat | -11 -10 -10 -10 -9 -8 -------- Run | Yrd Mat Min Exi Min Mat Hostile Shots Fired 158 | . 76 . . 4 78 Missed 38 | . 20 . . 2 16 Hits 120 | . 56 . . 2 62 Projectile 120 | . 56 . . 2 62 Critical Strikes 3 | . 1 . . . 2 Damage Taken 1657 | . 674 . . 34 949 Core 248 | . 182 . . . 66 Absorbed by Shields . | . . . . . . Regen/Repaired (Parts) 137 | . 137 . . . . Core Remaining (%) 63 | 100 . . . 27 . Volleys Fired 122 | 3 56 1 . 9 53 Largest 2 | 2 2 2 . 2 2 Hottest 140 | 80 100 80 . 80 140 Shots Fired 218 | 6 112 2 . 18 80 Gun 184 | 6 89 2 . 18 69 Cannon 34 | . 23 . . . 11 Launcher . | . . . . . . Special . | . . . . . . Kinetic 7 | . . . . . 7 Thermal 195 | 6 105 2 . 18 64 Explosive . | . . . . . . Electromagnetic 16 | . 7 . . . 9 Robot Hit Streak 12 | 2 7 5 . 7 12 Robot Miss Streak 6 | 1 4 . . 2 6 Penetration Max . | . . . . . . Secondary Targets . | . . . . . . Shots Hit Robots 153 | 4 73 2 . 12 62 Core Hits 85 | 3 27 . . 4 51 Critical Kills 1 | . 1 . . . . Critical Parts Destroyed . | . . . . . . Critical Strikes 2 | . 1 . . . 1 Burn 1 | . . . . . 1 Meltdown 1 | . 1 . . . . Melee Attacks . | . . . . . . Impact . | . . . . . . Slashing . | . . . . . . Piercing . | . . . . . . Sneak Attacks . | . . . . . . Combat Hostiles . | . . . . . . Follow-up Attacks . | . . . . . . Damage Inflicted 2363 | 42 1057 20 . 132 1112 Guns 1650 | 42 645 20 . 132 811 Cannons 433 | . 277 . . . 156 Explosions 259 | . 114 . . . 145 Melee . | . . . . . . Ramming 21 | . 21 . . . . Kinetic 76 | . . . . . 76 Thermal 1927 | 42 900 20 . 132 833 Explosive 259 | . 114 . . . 145 Electromagnetic 80 | . 22 . . . 58 Impact . | . . . . . . Slashing . | . . . . . . Piercing . | . . . . . . Highest Corruption 7 | . . . . . 7 Average Corruption 7 | . . . . . 7 Corruption Purged . | . . . . . . Corruption Blocked . | . . . . . . Overload Shots . | . . . . . . Overflow Damage . | . . . . . . Projectiles . | . . . . . . Explosions . | . . . . . . Melee . | . . . . . . Knockbacks 1 | . 1 . . . . Impact 1 | . 1 . . . . Kinetic . | . . . . . . Secondary . | . . . . . . Self-Inflicted Damage 103 | . 103 . . . . Shots 1 | . 1 . . . . Rammed 7 | . 7 . . . . Targets Rammed 9 | . 9 . . . . Kicked . | . . . . . . Crushed 2 | . 2 . . . . Highest Temperature 228 | 18 84 . . 2 228 Average Temperature 73 | 12 38 . . 2 96 Received Heat Transfer 513 | . 198 . . 18 297 Siege Activations . | . . . . . . Martial Activations . | . . . . . . Shielding Activations . | . . . . . . Robots Disrupted . | . . . . . . Combat Hostiles . | . . . . . . Robots Corrupted . | . . . . . . Combat Hostiles . | . . . . . . Parts Fried . | . . . . . . Impact Corruptions . | . . . . . . Robots Melted 1 | . 1 . . . . Combat Hostiles 1 | . 1 . . . . Parts Melted 3 | . 2 . . . 1 Heat Transferred 3811 | 100 1992 50 . 300 1369 Parts Sabotaged . | . . . . . . Parts Stolen . | . . . . . . Parts Stripped . | . . . . . . Power Chain Reactions . | . . . . . . Alert | -11 -10 -10 -10 -9 -8 ------- Run | Yrd Mat Min Exi Min Mat Maximum Alert Level . | . . . . . . Low Security (%) 100 | 100 100 100 . 100 100 Level 1 . | . . . . . . Level 2 . | . . . . . . Level 3 . | . . . . . . Level 4 . | . . . . . . Level 5 . | . . . . . . High Security . | . . . . . . Max Security . | . . . . . . Peak Influence 165 | 10 165 11 . 78 156 Initial 22 | . . 11 . . 22 Average 52 | . 68 . . 24 76 Influence Increases 1058 | 10 456 . . 155 437 Destroy 0b10 Robot/C 640 | . 320 . . 120 200 Destroy 0b10 Robot/NC 50 | 10 25 . . . 15 Destroy Leader 138 | . 56 . . 20 62 Allied During Kill 20 | . . . . 15 5 Trap Triggered on 0b10 20 | . . . . . 20 Successful Hack 28 | . 23 . . . 5 Disable Machine 45 | . 15 . . . 30 Destroy Structure 27 | . 17 . . . 10 Lose Combat Pursuer 90 | . . . . . 90 Influence Decreases 975 | 10 426 30 . 97 412 Entered New Map 55 | . . 19 . . 36 Time Decay 825 | 10 416 11 . 97 291 Lost Part 70 | . 10 . . . 60 Lost Ally 25 | . . . . . 25 Squads Dispatched 3 | . 2 . . . 1 Investigation . | . . . . . . Extermination . | . . . . . . Reinforcement 3 | . 2 . . . 1 Assault . | . . . . . . Garrison . | . . . . . . Intercept . | . . . . . . Searches Triggered . | . . . . . . Construction Impeded 1 | . . . . . 1 Haulers Reinforced . | . . . . . . Active Scanning Responses . | . . . . . . Cargo Convoy Interrupts . | . . . . . . Stealth | -11 -10 -10 -10 -9 -8 --------- Run | Yrd Mat Min Exi Min Mat Distress Signals 8 | . 2 . . . 6 Communications Jammed . | . . . . . . Distress Signals . | . . . . . . Times Spotted 55 | . 28 . . 5 22 Peak Tracking Total 8 | . 6 . . 3 8 Tactical Retreats 5 | . . . . . 5 ECM-based Alert Blocks 4 | . . . . . 4 Traps | -11 -10 -10 -10 -9 -8 ------- Run | Yrd Mat Min Exi Min Mat Traps Triggered . | . . . . . . Indirectly . | . . . . . . Trap Hack Attempts . | . . . . . . Triggered . | . . . . . . Disarmed . | . . . . . . Reprogrammed . | . . . . . . Reused 2 | . . . . . 2 Traps Reconfigurated 9 | . . . . . 9 Traps Extracted . | . . . . . . Installed . | . . . . . . Triggered 2 | . . . . . 2 Machines | -11 -10 -10 -10 -9 -8 ---------- Run | Yrd Mat Min Exi Min Mat Machines Disabled 3 | . 1 . . . 2 Max in Single Turn 1 | . 1 . . . 1 Machines Repaired . | . . . . . . Machines Dismantled . | . . . . . . Machines Sabotaged . | . . . . . . Overloaded Fab Kills . | . . . . . . Hacking | -11 -10 -10 -10 -9 -8 --------- Run | Yrd Mat Min Exi Min Mat Machines Accessed 11 | . 7 . 2 . 2 Terminals 8 | . 6 . . . 2 Fabricators . | . . . . . . Repair Stations 1 | . 1 . . . . Recycling Units . | . . . . . . Scanalyzers . | . . . . . . Garrison Access . | . . . . . . Total Hacks 36 | . 24 . 5 . 7 Successful 19 | . 10 . 5 . 4 Failed 17 | . 14 . . . 3 Catastrophic 4 | . 4 . . . . Database Lockouts . | . . . . . . Manual 22 | . 16 . 1 . 5 Terminals 27 | . 20 . . . 7 Fabricators . | . . . . . . Repair Stations 4 | . 4 . . . . Recycling Units . | . . . . . . Scanalyzers . | . . . . . . Garrison Access . | . . . . . . Terminal Hacks 10 | . 4 . 5 . 1 Record 4 | . . . 4 . . Prototype ID Bank 3 | . 3 . . . . Locate Traps 2 | . 1 . . . 1 Proto ID Catalog 1 | . . . 1 . . Fabricator Hacks . | . . . . . . Repair Station Hacks 3 | . 3 . . . . Scan Component 2 | . 2 . . . . Repair 1 | . 1 . . . . Recycling Unit Hacks . | . . . . . . Scanalyzer . | . . . . . . Garrison Access Hacks . | . . . . . . Unauthorized Hacks 6 | . 3 . . . 3 Terminals 6 | . 3 . . . 3 Botnet 2 | . 1 . . . 1 Operators 1 | . 1 . . . . Skim 3 | . 1 . . . 2 Fabricators . | . . . . . . Repair Stations . | . . . . . . Recycling Units . | . . . . . . Scanalyzers . | . . . . . . Garrison Access . | . . . . . . Data Cores Recovered . | . . . . . . Used . | . . . . . . Hacking Detections 9 | . 7 . . . 2 Full Trace Events . | . . . . . . Feedback Events . | . . . . . . Feedback Blocked . | . . . . . . Robot Schematics Acquired . | . . . . . . Robots Built . | . . . . . . Authchips . | . . . . . . Time . | . . . . . . Total Robot Build Rating . | . . . . . . Part Schematics Acquired . | . . . . . . Parts Built . | . . . . . . Authchips . | . . . . . . Time . | . . . . . . Total Part Build Rating . | . . . . . . Part Studies Acquired . | . . . . . . Parts Repaired 1 | . 1 . . . . Time 26 | . 26 . . . . Parts Recycled . | . . . . . . Recycled Matter . | . . . . . . Retrieved Matter . | . . . . . . Retrieved Components . | . . . . . . Parts Scanalyzed . | . . . . . . Part Schematics Acquired . | . . . . . . Parts Damaged . | . . . . . . Bothacking | -11 -10 -10 -10 -9 -8 ------------ Run | Yrd Mat Min Exi Min Mat Used RIF Installer . | . . . . . . Robots Hacked . | . . . . . . Non-combat . | . . . . . . Combat . | . . . . . . Robot Hacks Applied . | . . . . . . Relay Couplers Released . | . . . . . . Fabnet Peak Effective % . | . . . . . . Robots Rewired . | . . . . . . Allies Hacked . | . . . . . . Hacks Repelled . | . . . . . . Allies | -11 -10 -10 -10 -9 -8 -------- Run | Yrd Mat Min Exi Min Mat Total Allies 2 | . . . . 2 . Largest Group 2 | . . . . 2 2 Highest-Rated Group 43 | . . . . 43 43 Highest-Rated Ally 31 | . . . . 31 31 Total Orders . | . . . . . . Ally Attacks 27 | . . . . 25 2 Total Damage 337 | . . . . 294 43 Kills 6 | . . . . 5 1 Allies Corrupted . | . . . . . . Allies Melted . | . . . . . . Intel | -11 -10 -10 -10 -9 -8 ------- Run | Yrd Mat Min Exi Min Mat Active Infowar (turns) 876 | 22 218 . . . 636 Traps 635 | . . . . . 635 Seismic 240 | 22 218 . . . . ECM 106 | . . . . . 106 Robot Analysis Total . | . . . . . . Derelict Logs Recovered 2 | . . 1 . 1 . Drone Launches . | . . . . . . Drone Recoveries . | . . . . . . Exploration | -11 -10 -10 -10 -9 -8 ------------- Run | Yrd Mat Min Exi Min Mat Turns Passed 3295 | 94 1398 505 246 309 743 Spaces Moved 2137 | 48 744 436 213 233 463 Core 4 | 4 . . . . . Treads 658 | 44 612 . . . 2 Legs . | . . . . . . Wheels 1475 | . 132 436 213 233 461 Hover . | . . . . . . Flight . | . . . . . . Fastest Speed 50 | 50 100 115 115 115 100 Average Speed 126 | 150 150 115 115 115 105 Slowest Speed 240 | 160 160 115 115 115 240 Overloaded Moves . | . . . . . . Propulsion Burnouts . | . . . . . . Robots Hopped . | . . . . . . Potential Cave-ins . | . . . . . . Cave-ins Triggered . | . . . . . . Exploration Rate (%) 54 | 4 95 70 61 53 41 Regions Visited 5 Branch Regions 3 Pre-discovered Areas 2 | . . 1 1 . . Known Exits Taken . | . . . . . . Unknown Exits Taken 5 | 1 1 1 1 1 . Scrap Searched 1 | . . 1 . . . Spaces Dug . | . . . . . . Terrain Destroyed 29 | . 21 . . . 8 Melee . | . . . . . . Projectile . | . . . . . . AOE 29 | . 21 . . . 8 Terrain Rammed . | . . . . . . Walls Destroyed . | . . . . . . Machines Disabled . | . . . . . . Actions | -11 -10 -10 -10 -9 -8 --------- Run | Yrd Mat Min Exi Min Mat Total 2503 | 60 897 437 214 256 639 Wait 156 | 1 64 . . 13 78 Move 2132 | 47 743 435 212 232 463 Hop . | . . . . . . Pick Up 17 | 2 7 1 1 1 5 Fast Attach 13 | 7 2 . . . 4 Attach 10 | . 1 . . . 9 Detach 6 | . 1 . . . 5 Swap 24 | . 11 . . . 13 Drop 14 | . 3 . 1 1 9 Fire 122 | 3 56 1 . 9 53 Melee . | . . . . . . Ram 1 | . 1 . . . . Kick . | . . . . . . Crush 8 | . 8 . . . . Escape Stasis . | . . . . . . Rewire . | . . . . . . Trap . | . . . . . . Miscellaneous . | . . . . . . Route ------- -11/Scrapyard -10/Materials (discovered 5 exits: [*Mat x3] / [*Min x2]) -10/Mines (discovered 2 exits: [*Mat] / *Exi) -10/Exiles -9/Mines (discovered 2 exits: *Mat x2) -8/Materials History --------- Turn | Location | Event 8 | -11/Scrapyard | Discovered new exit (range 16) 95 | -11/Scrapyard | Entered Materials 305 | -10/Materials | Build established: Mutant 320 | -10/Materials | Discovered new exit (range 6) 612 | -10/Materials | Discovered new exit (range 6) 631 | -10/Materials | Core integrity fell below 50% 902 | -10/Materials | Discovered new exit (range 15) 1053 | -10/Materials | Discovered new exit (range 9) 1240 | -10/Materials | Repaired Lgt. Treads 1271 | -10/Materials | Discovered new exit (range 16) 1493 | -10/Materials | Entered Mines 1522 | -10/Mines | Learned 2 Materials zone layouts 1646 | -10/Mines | Discovered new exit (range 8) 1747 | -10/Mines | Learned location of Storage (-7) 1992 | -10/Mines | Deemed a non-threat by the Exiles lab entrance 1993 | -10/Mines | Discovered new exit (range 5) 1998 | -10/Mines | Entered Exiles 2025 | -10/Exiles | Met 8R-AWN 2046 | -10/Exiles | Met EX-HEX 2078 | -10/Exiles | Met EX-BIN 2092 | -10/Exiles | Aligned with FarCom system 2093 | -10/Exiles | Given EX-Vault access code 2119 | -10/Exiles | Opened EX-Vault 2127 | -10/Exiles | Found Trap Reconfigurator 2151 | -10/Exiles | Warned to stay clear of 0b10 Research branches 2191 | -10/Exiles | Met EX-DEC 2199 | -10/Exiles | Learned location of Zion (-7) 2231 | -10/Exiles | Discovered new exit (range 14) 2244 | -10/Exiles | Left Exiles lab with Trap Reconfigurator 2244 | -10/Exiles | Entered Mines 2478 | -9/Mines | Discovered new exit (range 5) 2486 | -9/Mines | Learned Materials emergency access door positions 2488 | -9/Mines | Discovered new exit (range 3) 2553 | -9/Mines | Entered Materials 2553 | -8/Materials | Accompanied by 2 allies 2553 | -8/Materials | Evolved 4 slots: Propulsion x2, Utility x2 2558 | -8/Materials | Led the pair of lost Derelicts to an unsafe place 3182 | -8/Materials | Build established: Scavenger-Mutant 3296 | -8/Materials | Self-destructed Last Messages --------------- 03237_ Door malfunctions. 03246_ Penetrated by Slug. 03249_ EM Pulse Gun destroyed. 03253_ Slug penetrates Wall. 03255_ Lgt. Treads destroyed. 03256_ Penetrated by Slug. 03260_ Acquired 16 matter. 03263_ Acquired Corrupted Aluminum Leg. 03263_ Integrated Corrupted Aluminum Leg (+7). 03265_ Acquired 10 matter. 03277_ Slug penetrates Wall. 03285_ R-06 Scavenger collects Corrupted Particle Gun. 03285_ H-55 Commando deploys Drone. 03285_ Penetrated by Slug. 03285_ Spread Laser destroyed. 03285_ Drone sends a signal. 03285_ H-55 Commando retrieves Drone. 03288_ Slug penetrates Wall. 03290_ R-06 Scavenger collects Corrupted Imp. Heat Sink. 03294_ Penetrated by Slug. Map ----- +----------------------------------------------------+ | ??????# """ ""#?# """"""" #??????????????????? | | ??????# """ #?# """"""" #??????????????????? | | ??????# #?# """"""" #??????????????????? | | ??????# #?# """"""" #??????????????????? | | ??????# """ #?# """"""" #??????????????????? | | ??????## """ #?# #??????????????????? | | ######## " ! #?##+##+#####??????????????????? | | ? # #??# #??????????????????????? | | " """ # ??# #??????????????????????? | | " """ # ??# #??????????????????????? | | " """ # ### #??????????????????????? | | " """ # #???????########???????? | | " """ + #???????# ???????? | | # = #???????# "" ???????? | | ######## + #?????# ""S ???????? | | # # ##??????# "" ???????? | | # # ######+####### #???????# ???????? | | # + #??# [#??# #???###########+#??????? | | # """ # #??# """ #??# #???# ?????? | | # """ # #??# """ #### ##### ?????? | | # """ ?# #??# """ + Y ?????? | | ######## #### # h######/#########???????? | | # """ + + [ # r ## #??# ???????? | | # """ # #####+##### % ## #??##???????? | | # """ + #???# #???# ## #???#???????? | | # #########!##### %@## #???#???????? | | #! + % + #???#???????? | | # [ ##################### #???#???????? | | ########????????????????#### #???#???????? | | ???????????????????????????# #???#???????? | | ???????????????????????????###########???#???????? | | | | | | | | | | | | | | | | | | | | | | | | | | | | | | | | | | | | | | | +----------------------------------------------------+ Best States ------------- Heat Dissipation 41 Energy Generation 14 Energy Capacity 250 Matter Stores 300 Matter Capacity 300 Sight Range 16 Terrain Scan Density 10 ECM Strength 1 Armor Coverage 150 Evasion (%) 40 Recoil Reduction 2 Item Schematics ----------------- None Robot Schematics ------------------ None Fabricated ------------ Nothing Repaired ---------- Lgt. Treads | 2% | -10/Materials Studied --------- None Alien Tech Used ----------------- None Achievements -------------- None Challenges ------------ None Game ------ Seed DirectedModifiedTurbovents Manual? 0 Play Time 00:31:05 Cumulative 209.8 hours Start 2025.10.31 @ 20:59:05 End 2025.10.31 @ 21:32:39 Sessions 1 Manual Loads 0 Difficulty Rogue Special Mode None Game No. 173 Rogue 173 Adventurer 0 Explorer 0 Win Type - Total 4 Types 2/0/0/2/0/0/0/0/0/0 Lore% 75 Gallery% 67 Achievement% 47 Wizard Run 0 Options --------- Layout 0 ASCII 0 Keyboard 1 Movement Numpad Keybinds 0 Fullscreen 1 Font 24/Terminus Map View 76x50 Zoom Use 0% Tactical HUD 1 Map Filters NONE Filters NONE Steam 1 RUN: 5c02b8d4-7d7b-4ca2-9fed-9d231fac827a